{"text_format":"1","workbook":"xlsx","n_sheets":4,"sheets":["Reinigungsplan Mustertankstelle","Reinigungsplan leer","Beschreibung","Hilfe bei Fehler Erstöffnung"],"not_rendered":{"charts":0,"images":1,"macros":1,"external_links":0,"defined_names":5,"comments":0,"pivot_tables":0},"unopened":[],"bounds":{"document_bytes":16777216,"sheet_cells":100000,"rows_first":2000,"rows_last":500,"rows_between":2000,"halvings":0,"cell_chars":16384,"cell_head_chars":4096},"cells_cut":0,"cells_raw":0,"read":"whole","date_system":"1900"}

{"sheet":"Reinigungsplan Mustertankstelle","index":0,"n_rows":65,"n_cols":19,"rows_kept":65,"cut":false,"hidden":false,"merged":[[6,1,6,7],[7,1,7,7],[7,12,7,13],[7,15,7,16]]}
[]
["Reinigungsplan Mustertankstelle"]
[]
["Tankstelle 1 mit Shop bis 80 m2 plus Bistro, Waschanlage und 2 SB Waschboxen und 3 SB Sauger"]
["Öffnungszeiten Mo-Fr von 5:00 bis 22:00 Uhr, Sa von 6:00 bis 22:00 Uhr, So von 7:00 bis 21:00 Uhr"]
[null,null,null,null,null,null,null,null,null,null,null,null,null,null,null,null,null,null,"Eingabe"]
[null,"in diesen Block den täglichen Zeitaufwand eintragen,",null,null,null,null,null,null,null,null,null,null,null,null,null,null,null,null,"Tätigkeiten"]
[null,"die richtige Farbe zuordnen und  \"Summen aktualisieren\"",null,null,null,null,null,null,null,null,null,null,"Zeitaufwand",null,null,"Zeitaufwand",null,null,"1x/Monat"]
[null,"tägl.","tägl.","tägl.","tägl.","tägl.","tägl.","tägl.",null,null,null,null,"Woche","Woche",null,"Monat","Monat",null,"1 x im Monat"]
[null,"Mo","Di","Mi","Do","Fr","Sa","So",null,null,null,null,"Summe in min","Sum in Std",null,"Sum/min","Sum/Std",null,"Sum/Std"]
["AUSSENANLAGE",{"$f":"SUM(B12:B24)","v":53},53,53,53,53,30,30,null,null,null,null,{"$f":"SUM(B11:H11)","v":325},{"$f":"M11/60","v":5.416666666666667},null,{"$f":"(M11*4.32)","v":1404},{"$f":"P11/60","v":23.4},null,13]
["Wascheimer,Wasserkanne",3,3,3,3,3,3,3,null,null,null,null,{"$f":"SUM(B12:H12)","v":21},0.35,null,{"$f":"(M12*4.32)","v":90.72},1.512]
["Papierspender,Handschuhe",5,5,5,5,5,5,5,null,null,null,null,{"$f":"SUM(B13:H13)","v":35},0.58333333333333337,null,151.20000000000002,2.5200000000000005]
["Luftprüfer,Feuerlöscher",2,2,2,2,2,2,2,null,null,null,null,{"$f":"SUM(B14:H14)","v":14},0.23333333333333334,null,60.480000000000004,1.008]
["Zapfinsel/Pumpen",5,5,5,5,5,null,null,null,null,null,null,25,0.41666666666666669,null,108,1.8,null,3]
["Zapfpistolen,Schläuche",3,3,3,3,3,null,null,null,null,null,null,15,0.25,null,64.800000000000011,1.0800000000000003,null,3]
["Grünanlage(Unrat/Mähen)",5,5,5,5,5,null,null,null,null,null,null,25,0.41666666666666669,null,108,1.8,null,3]
[null,null,null,null,null,null,null,null,null,null,null,null,0,0,null,0,0]
["Abfallkübel",20,20,20,20,20,20,20,null,null,null,null,{"$f":"SUM(B19:H19)","v":140},2.3333333333333335,null,604.80000000000007,10.080000000000002]
["Staubsauger",5,5,5,5,5,null,null,null,null,null,null,25,0.41666666666666669,null,108,1.8,null,1]
["Fahrbahn",5,5,5,5,5,null,null,null,null,null,null,25,0.41666666666666669,null,108,1.8,null,3]
[null,null,null,null,null,null,null,null,null,null,null,null,0,0,null,0,0]
["Plakat",null,null,null,null,null,null,null,null,null,null,null,0,0,null,0,0]
["Beleuchtung",null,null,null,null,null,null,null,null,null,null,null,0,0,null,0,0]
["WASCHHALLE",150,{"$f":"SUM(C26:C29)","v":0},40,0,40,0,0,null,null,null,null,{"$f":"SUM(B25:H25)","v":230},3.8333333333333335,null,993.6,16.559999999999999,null,7]
["Waschhalle Boden/Wände",60,null,15,null,15,null,null,null,null,null,null,{"$f":"SUM(B26:H26)","v":90},1.5,null,{"$f":"(M26*4.32)","v":388.8},6.48,null,4]
["Portalmaschine",null,null,null,null,null,null,null,null,null,null,null,0,0,null,0,0]
["SB-Anlage",60,null,15,null,15,null,null,null,null,null,null,{"$f":"SUM(B28:H28)","v":90},1.5,null,388.8,6.48,null,3]
["Chemie SB+Waschanlage",30,null,10,null,10,null,null,null,null,null,null,{"$f":"SUM(B29:H29)","v":50},0.83333333333333337,null,{"$f":"(M29*4.32)","v":216},3.6]
["WC",28,28,28,74,28,9,9,null,null,null,null,{"$f":"SUM(B30:H30)","v":204},3.4,null,881.28000000000009,14.688000000000001,null,{"$f":"SUM(S31:S36)","v":0}]
["Toilettpapier",3,3,3,3,3,3,3,null,null,null,null,21,0.35,null,90.72,1.512]
["Abfalleimer",3,3,3,3,3,3,3,null,null,null,null,21,0.35,null,90.72,1.512]
["Handtuch,Seife",3,3,3,3,3,3,3,null,null,null,null,21,0.35,null,90.72,1.512]
["Waschbecken,Spiegel",5,5,5,5,5,null,null,null,null,null,null,25,0.41666666666666669,null,108,1.8]
["WC",7,7,7,30,7,null,null,null,null,null,null,58,0.96666666666666667,null,250.56,4.1760000000000002]
["Fussboden",7,7,7,30,7,null,null,null,null,null,null,58,0.96666666666666667,null,250.56,4.1760000000000002]
["SHOP",40,40,40,40,40,40,40,null,null,null,null,310,5.2,null,1339.2,22.32,null,{"$f":"SUM(S38:S41)","v":0}]
["Papierkorb",10,10,10,10,10,10,10,null,null,null,null,70,1.1666666666666667,null,302.40000000000003,5.0400000000000009]
["Fussboden",30,30,30,60,30,30,30,null,null,null,null,240,4,null,1036.8000000000002,17.280000000000005]
["Beleuchtung",null,null,null,null,null,null,null,null,null,null,null,0,0,null,0,0]
[null,null,null,null,null,null,null,null,null,null,null,null,0,0,null,0,0]
["LAGER-Technik",10,10,10,10,10,0,0,null,null,null,null,{"$f":"SUM(B42:H42)","v":50},0.83333333333333337,null,216,3.6,null,2.5]
["Kompressor",null,null,null,null,null,null,null,null,null,null,null,0,0,null,0,0,null,0.5]
["Recycling",null,null,null,null,null,null,null,null,null,null,null,0,0,null,0,0,null,0.5]
["Benzinabscheider",null,null,null,null,null,null,null,null,null,null,null,0,0,null,0,0,null,0.5]
["Lager",10,10,10,10,10,null,null,null,null,null,null,50,0.83333333333333337,null,{"$f":"(M46*4.32)","v":216},3.6,null,1]
[null,null,null,null,null,null,null,null,null,null,null,null,0,0,null,0,0]
[]
[null,"tägl.","tägl.","tägl.","tägl.","tägl.","tägl.","tägl.",null,null,null,null,"Woche","Woche",null,"Monat","Monat",null,"1 x im Monat"]
[null,"Mo","Di","Mi","Do","Fr","Sa","So",null,null,null,null,"Sum/min","Sum/Std",null,"Sum/min","Sum/Std",null,"Sum/Std"]
["Summe in min /Tag",{"$f":"B11+B30+B25+B37+B42","v":281},131,171,207,{"$f":"F11+F30+F25+F37+F42","v":171},79,79,null,null,null,null,1119,18.7,null,4834,80.599999999999994,null,{"$f":"S11+S30+S25+S37+S42","v":22.5}]
["Summe in Std /Tag",{"$f":"B51/60","v":4.6833333333333336},{"$f":"C51/60","v":2.1833333333333331},2.85,3.45,2.85,1.3166666666666667,1.3166666666666667]
[null,null,null,null,null,null,null,null,null,null,null,null,"Woche","Woche",null,"Monat","Monat",null,"1 x im Monat"]
[null,"Sum/min","Sum/min","Sum/min","Sum/min","Sum/min","Sum/min","Sum/min",null,null,null,null,"Sum/min","Sum/Std",null,"Sum/min","Sum/Std",null,"Sum/Std"]
["Kassamitarbeiter in min/Tag",{"$f":"Summewennfarbe(B12:B47,A63)+(0*NOW())","v":29},{"$f":"Summewennfarbe(C12:C47,A63)+(0*NOW())","v":29},{"$f":"Summewennfarbe(D12:D47,A63)+(0*NOW())","v":29},{"$f":"Summewennfarbe(E12:E47,A63)+(0*NOW())","v":29},{"$f":"Summewennfarbe(F12:F47,A63)+(0*NOW())","v":29},79,79,null,null,null,null,{"$f":"SUM(B55:H55)","v":303},{"$f":"M55/60","v":5.05},null,{"$f":"M55*4.32","v":1308.96},{"$f":"Q12+Q13+Q14+Q22+Q23+Q31+Q32+Q33+Q38+Q19+Q39","v":41.976000000000013},null,{"$f":"Summewennfarbe(S12:S47,A63)+(0*NOW())","v":0}]
["Beidienst in min /Tag",{"$f":"Summewennfarbe(B12:B47,A64)+(0*NOW())","v":102},{"$f":"Summewennfarbe(C12:C47,A64)+(0*NOW())","v":102},{"$f":"Summewennfarbe(D12:D47,A64)+(0*NOW())","v":102},{"$f":"Summewennfarbe(E12:E47,A64)+(0*NOW())","v":178},{"$f":"Summewennfarbe(F12:F47,A64)+(0*NOW())","v":102},0,0,null,null,null,null,{"$f":"SUM(B56:H56)","v":586},{"$f":"M56/60","v":9.7666666666666675},null,{"$f":"M56*4.32","v":2531.52},{"$f":"Q15+Q16+Q17+Q18+Q20+Q21+Q24+Q27+Q34+Q35+Q36+Q40+Q41+Q46","v":22.032000000000004},null,{"$f":"Summewennfarbe(S12:S47,A64)+(0*NOW())","v":1.5}]
["Extern in min /Tag",{"$f":"Summewennfarbe(B12:B47,A65)+(0*NOW())","v":150},{"$f":"Summewennfarbe(C12:C47,A65)+(0*NOW())","v":0},{"$f":"Summewennfarbe(D12:D47,A65)+(0*NOW())","v":40},{"$f":"Summewennfarbe(E12:E47,A65)+(0*NOW())","v":0},{"$f":"Summewennfarbe(F12:F47,A65)+(0*NOW())","v":40},{"$f":"Summewennfarbe(G12:G47,A65)+(0*NOW())","v":0},{"$f":"Summewennfarbe(H12:H47,A65)+(0*NOW())","v":0},null,null,null,null,{"$f":"SUM(B57:H57)","v":230},{"$f":"M57/60","v":3.8333333333333335},null,{"$f":"M57*4.32","v":993.6},{"$f":"Q26+Q28+Q29","v":16.560000000000002},null,21]
["Summe in min /Tag",{"$f":"B55+B56+B57","v":281},131,171,207,171,79,79,null,null,null,null,{"$f":"M55+M56+M57","v":1119},{"$f":"N55+N56+N57","v":18.649999999999999},null,{"$f":"P55+P56+P57","v":4834.08},{"$f":"Q55+Q56+Q57","v":80.568000000000012},null,22.5]
[]
["Zeitbedarf für Reinigung ",null,null,19,"Stunden/Woche",null,null,null,null,null,81,"Stunden/Monat",null,null,null,103,"Stunden/Monat gesamt"]
[null,null,null,null,"für tägl. Reinigung",null,null,null,null,null,null,"für tägl. Reinigung",null,null,null,null," für tägl. und monatl. Reinigung"]
["Legende: "]
["erledigt durch Kassamitarbeiter"]
["erledigt durch Beidienst"]
["extern vergeben"]

{"sheet":"Reinigungsplan leer","index":1,"n_rows":65,"n_cols":21,"rows_kept":65,"cut":false,"hidden":false,"merged":[[6,1,6,7],[7,1,7,7],[7,12,7,13],[7,15,7,16]]}
[]
["Reinigungsplan "]
[]
["Tankstelle 1 mit Shop bis 80 m2 plus Bistro, Waschanlage und 2 SB Waschboxen und 3 SB Sauger"]
["Öffnungszeiten Mo-Fr von 5:00 bis 22:00 Uhr, Sa von 6:00 bis 22:00 Uhr, So von 7:00 bis 21:00 Uhr"]
[null,null,null,null,null,null,null,null,null,null,null,null,null,null,null,null,null,null,"Eingabe"]
[null,"in diesen Block den täglichen Zeitaufwand eintragen,",null,null,null,null,null,null,null,null,null,null,null,null,null,null,null,null,"Tätigkeiten"]
[null,"die richtige Farbe zuordnen und  \"Summen aktualisieren\"",null,null,null,null,null,null,null,null,null,null,"Zeitaufwand",null,null,"Zeitaufwand",null,null,"1x/Monat"]
[null,"tägl.","tägl.","tägl.","tägl.","tägl.","tägl.","tägl.",null,null,null,null,"Woche","Woche",null,"Monat","Monat",null,"1 x im Monat"]
[null,"Mo","Di","Mi","Do","Fr","Sa","So",null,null,null,null,"Summe in min","Sum in Std",null,"Sum/min","Sum/Std",null,"Sum/Std"]
["AUSSENANLAGE",{"$f":"SUM(B12:B24)","v":0},0,0,0,0,0,0,null,null,null,null,{"$f":"SUM(B11:H11)","v":0},{"$f":"M11/60","v":0},null,{"$f":"(M11*4.32)","v":0},{"$f":"P11/60","v":0},null,{"$f":"SUM(S12:S24)","v":0}]
["Wascheimer,Wasserkanne",null,null,null,null,null,null,null,null,null,null,null,{"$f":"SUM(B12:H12)","v":0},0,null,{"$f":"(M12*4.32)","v":0},0]
["Papierspender,Handschuhe",null,null,null,null,null,null,null,null,null,null,null,{"$f":"SUM(B13:H13)","v":0},0,null,0,0]
["Luftprüfer,Feuerlöscher",null,null,null,null,null,null,null,null,null,null,null,{"$f":"SUM(B14:H14)","v":0},0,null,0,0]
["Zapfinsel/Pumpen",null,null,null,null,null,null,null,null,null,null,null,0,0,null,0,0]
["Zapfpistolen,Schläuche",null,null,null,null,null,null,null,null,null,null,null,0,0,null,0,0]
["Grünanlage(Unrat/Mähen)",null,null,null,null,null,null,null,null,null,null,null,0,0,null,0,0]
[null,null,null,null,null,null,null,null,null,null,null,null,0,0,null,0,0]
["Abfallkübel",null,null,null,null,null,null,null,null,null,null,null,{"$f":"SUM(B19:H19)","v":0},0,null,0,0]
["Staubsauger",null,null,null,null,null,null,null,null,null,null,null,0,0,null,0,0,null,null,null,5]
["Fahrbahn",null,null,null,null,null,null,null,null,null,null,null,0,0,null,0,0]
[null,null,null,null,null,null,null,null,null,null,null,null,0,0,null,0,0]
["Plakat",null,null,null,null,null,null,null,null,null,null,null,0,0,null,0,0]
["Beleuchtung",null,null,null,null,null,null,null,null,null,null,null,0,0,null,0,0]
["WASCHHALLE",{"$f":"SUM(B26:B29)","v":0},{"$f":"SUM(C26:C29)","v":0},0,0,0,0,0,null,null,null,null,{"$f":"SUM(B25:H25)","v":0},0,null,0,0,null,{"$f":"SUM(S26:S29)","v":0}]
["Waschhalle Boden/Wände",null,null,null,null,null,null,null,null,null,null,null,{"$f":"SUM(B26:H26)","v":0},0,null,{"$f":"(M26*4.32)","v":0},0]
["Portalmaschine",null,null,null,null,null,null,null,null,null,null,null,0,0,null,0,0]
["SB-Anlage",null,null,null,null,null,null,null,null,null,null,null,{"$f":"SUM(B28:H28)","v":0},0,null,0,0]
["Chemie SB+Waschanlage",null,null,null,null,null,null,null,null,null,null,null,{"$f":"SUM(B29:H29)","v":0},0,null,{"$f":"(M29*4.32)","v":0},0]
["WC",{"$f":"SUM(B31:B36)","v":0},{"$f":"SUM(C31:C36)","v":0},0,0,0,0,0,null,null,null,null,{"$f":"SUM(B30:H30)","v":0},0,null,0,0,null,{"$f":"SUM(S31:S36)","v":0}]
["Toilettpapier",null,null,null,null,null,null,null,null,null,null,null,0,0,null,0,0]
["Abfalleimer",null,null,null,null,null,null,null,null,null,null,null,0,0,null,0,0]
["Handtuch,Seife",null,null,null,null,null,null,null,null,null,null,null,0,0,null,0,0]
["Waschbecken,Spiegel",null,null,null,null,null,null,null,null,null,null,null,0,0,null,0,0]
["WC",null,null,null,null,null,null,null,null,null,null,null,0,0,null,0,0]
["Fussboden",null,null,null,null,null,null,null,null,null,null,null,0,0,null,0,0]
["SHOP",{"$f":"SUM(B38:B41)","v":0},{"$f":"SUM(C38:C41)","v":0},0,0,0,0,0,null,null,null,null,{"$f":"SUM(B37:H37)","v":0},0,null,0,0,null,{"$f":"SUM(S38:S41)","v":0}]
["Papierkorb",null,null,null,null,null,null,null,null,null,null,null,{"$f":"SUM(B38:H38)","v":0},0,null,0,0]
["Fussboden",null,null,null,null,null,null,null,null,null,null,null,{"$f":"SUM(B39:H39)","v":0},0,null,0,0]
["Beleuchtung",null,null,null,null,null,null,null,null,null,null,null,0,0,null,0,0]
[null,null,null,null,null,null,null,null,null,null,null,null,0,0,null,0,0]
["LAGER-Technik",{"$f":"SUM(B43:B47)","v":0},{"$f":"SUM(C43:C47)","v":0},0,0,0,0,0,null,null,null,null,{"$f":"SUM(B42:H42)","v":0},0,null,0,0,null,{"$f":"SUM(S43:S47)","v":0}]
["Kompressor",null,null,null,null,null,null,null,null,null,null,null,0,0,null,0,0]
["Recycling",null,null,null,null,null,null,null,null,null,null,null,0,0,null,0,0]
["Benzinabscheider",null,null,null,null,null,null,null,null,null,null,null,0,0,null,0,0]
["Lager",null,null,null,null,null,null,null,null,null,null,null,0,0,null,{"$f":"(M46*4.32)","v":0},0]
[null,null,null,null,null,null,null,null,null,null,null,null,0,0,null,0,0]
[]
[null,"tägl.","tägl.","tägl.","tägl.","tägl.","tägl.","tägl.",null,null,null,null,"Woche","Woche",null,"Monat","Monat",null,"1 x im Monat"]
[null,"Mo","Di","Mi","Do","Fr","Sa","So",null,null,null,null,"Sum/min","Sum/Std",null,"Sum/min","Sum/Std",null,"Sum/Std"]
["Summe in min /Tag",{"$f":"B11+B30+B25+B37+B42","v":0},0,0,0,{"$f":"F11+F30+F25+F37+F42","v":0},0,0,null,null,null,null,{"$f":"SUM(B51:H51)","v":0},{"$f":"M51/60","v":0},null,{"$f":"(M51*4.32)","v":0},{"$f":"P51/60","v":0},null,{"$f":"S11+S30+S25+S37+S42","v":0}]
["Summe in Std /Tag",{"$f":"B51/60","v":0},{"$f":"C51/60","v":0},0,0,0,0,0]
[null,null,null,null,null,null,null,null,null,null,null,null,"Woche","Woche",null,"Monat","Monat",null,"1 x im Monat"]
[null,"Sum/min","Sum/min","Sum/min","Sum/min","Sum/min","Sum/min","Sum/min",null,null,null,null,"Sum/min","Sum/Std",null,"Sum/min","Sum/Std",null,"Sum/Std"]
["Kassamitarbeiter in min/Tag",{"$f":"Summewennfarbe(B12:B47,A63)+(0*NOW())","v":0},{"$f":"Summewennfarbe(C12:C47,A63)+(0*NOW())","v":0},{"$f":"Summewennfarbe(D12:D47,A63)+(0*NOW())","v":0},{"$f":"Summewennfarbe(E12:E47,A63)+(0*NOW())","v":0},{"$f":"Summewennfarbe(F12:F47,A63)+(0*NOW())","v":0},{"$f":"Summewennfarbe(G12:G47,A63)+(0*NOW())","v":0},{"$f":"Summewennfarbe(H12:H47,A63)+(0*NOW())","v":0},null,null,null,null,{"$f":"SUM(B55:H55)","v":0},{"$f":"M55/60","v":0},null,{"$f":"M55*4.32","v":0},{"$f":"Q12+Q13+Q14+Q22+Q23+Q31+Q32+Q33+Q38+Q19+Q39","v":0},null,{"$f":"Summewennfarbe(S12:S47,A63)+(0*NOW())","v":0}]
["Beidienst in min /Tag",{"$f":"Summewennfarbe(B12:B47,A64)+(0*NOW())","v":0},{"$f":"Summewennfarbe(C12:C47,A64)+(0*NOW())","v":0},{"$f":"Summewennfarbe(D12:D47,A64)+(0*NOW())","v":0},{"$f":"Summewennfarbe(E12:E47,A64)+(0*NOW())","v":0},{"$f":"Summewennfarbe(F12:F47,A64)+(0*NOW())","v":0},{"$f":"Summewennfarbe(G12:G47,A64)+(0*NOW())","v":0},{"$f":"Summewennfarbe(H12:H47,A64)+(0*NOW())","v":0},null,null,null,null,{"$f":"SUM(B56:H56)","v":0},{"$f":"M56/60","v":0},null,{"$f":"M56*4.32","v":0},{"$f":"Q15+Q16+Q17+Q18+Q20+Q21+Q24+Q27+Q34+Q35+Q36+Q40+Q41+Q46","v":0},null,{"$f":"Summewennfarbe(S12:S47,A64)+(0*NOW())","v":0}]
["Extern in min /Tag",{"$f":"Summewennfarbe(B12:B47,A65)+(0*NOW())","v":0},{"$f":"Summewennfarbe(C12:C47,A65)+(0*NOW())","v":0},{"$f":"Summewennfarbe(D12:D47,A65)+(0*NOW())","v":0},{"$f":"Summewennfarbe(E12:E47,A65)+(0*NOW())","v":0},{"$f":"Summewennfarbe(F12:F47,A65)+(0*NOW())","v":0},{"$f":"Summewennfarbe(G12:G47,A65)+(0*NOW())","v":0},{"$f":"Summewennfarbe(H12:H47,A65)+(0*NOW())","v":0},null,null,null,null,{"$f":"SUM(B57:H57)","v":0},{"$f":"M57/60","v":0},null,{"$f":"M57*4.32","v":0},{"$f":"Q26+Q28+Q29","v":0},null,{"$f":"Summewennfarbe(S12:S47,A65)+(0*NOW())","v":0}]
["Summe in min /Tag",{"$f":"B55+B56+B57","v":0},0,0,0,0,0,0,null,null,null,null,{"$f":"M55+M56+M57","v":0},{"$f":"N55+N56+N57","v":0},null,{"$f":"P55+P56+P57","v":0},{"$f":"Q55+Q56+Q57","v":0},null,{"$f":"S55+S56+S57","v":0}]
[]
["Zeitbedarf für Reinigung ",null,null,0,"Stunden/Woche",null,null,null,null,null,0,"Stunden/Monat",null,null,null,{"$f":"K60+S51","v":0},"Stunden/Monat gesamt",null,null,null,100]
[null,null,null,null,"für tägl. Reinigung",null,null,null,null,null,null,"für tägl. Reinigung",null,null,null,null," für tägl. und monatl. Reinigung"]
["Legende: "]
["erledigt durch Kassamitarbeiter"]
["erledigt durch Beidienst"]
["extern vergeben"]

{"sheet":"Beschreibung","index":2,"n_rows":14,"n_cols":1,"rows_kept":14,"cut":false,"hidden":false,"merged":[]}
[]
["Der Reinigungsplan soll bewusst machen, welche Vielzahl an Reinigungstätigkeiten eigentlich anfallen, die im Geschäftsplan zu berücksichtigen sind."]
[]
["Mit diesem Berechnungsmodell kann der tägliche, wöchentliche und monatliche Reinigungsbedarf ermittelt werden."]
[]
["Einzugeben ist lediglich der tägliche Zeitaufwand für bestimmte Reinigungstätigkeiten sowie der zusätzlich 1x monatlich anfallende Zeitaufwand."]
[]
["Dabei ist eine Aufteilung des Zeitaufwands auf einzelnen Mitarbeiter/Mitarbeiterkategorien durch die individuelle farbliche Zuordnung "]
["gelb, orange oder grün darstellbar. Bitte keine anderen Farben verwenden."]
["Im Reinigungsplan für die Mustertankstelle erfolgt die Zuordnung auf die Mitarbeiterkategorien Kassadienst, Beidienst und "]
["externe Erledigung."]
[]
["Sollten nach öffnen der Datei die Formeln unten fehlerhaft dargestellt sein, muss die Bearbeitung der Datei aktiviert werden (siehe Reiter "]
["\"Hilfe bei Fehler Erstöffnung\"."]

{"sheet":"Hilfe bei Fehler Erstöffnung","index":3,"n_rows":0,"n_cols":0,"rows_kept":0,"cut":false,"hidden":false,"merged":[]}